fUSD/lending_fUSD_20240213
["ID","MTS","AMOUNT","RATE_DAILY","PERIOD"]
[313915864,1707820241050,-500.0,0.00029029,2]
[313915865,1707820241059,-500.0,0.00029029,2]
[313915866,1707820241068,-500.0,0.00029029,2]
[313915867,1707820241077,-500.0,0.00029029,2]
[313915868,1707820241086,-500.0,0.00029029,7]
[313915869,1707820241095,-150.0,0.00029029,2]
[313915870,1707820241104,-500.0,0.00029029,2]
[313915871,1707820241114,-500.0,0.00029029,2]
[313915872,1707820241124,-500.0,0.00029029,2]
[313915873,1707820241133,-500.0,0.00029029,2]
[313915874,1707820241142,-500.0,0.00029029,2]
[313915875,1707820241152,-500.0,0.00029029,2]
[313915876,1707820241161,-500.0,0.00029029,2]
[313915877,1707820241170,-500.0,0.00029029,2]
[313915878,1707820241179,-500.0,0.00029029,2]
[313915879,1707820241188,-500.0,0.00029029,2]
[313915880,1707820241198,-500.0,0.00029029,2]
[313915881,1707820241207,-528.11375289,0.00029029,2]
[313915882,1707820241216,-500.0,0.00029029,2]
[313915884,1707820241225,-500.0,0.00029029,2]
[313915886,1707820241237,-500.0,0.00029029,2]
[313915887,1707820241246,-500.0,0.00029029,2]
[313915888,1707820241256,-500.0,0.00029029,2]
[313915889,1707820241265,-500.0,0.00029029,2]
[313915890,1707820241274,-500.0,0.00029029,2]
[313915892,1707820241283,-500.0,0.00029029,2]
[313915893,1707820241293,-500.0,0.00029029,2]
[313915894,1707820241303,-500.0,0.00029029,2]
[313915895,1707820241315,-530.87632139,0.00029029,2]
[313915896,1707820241324,-503.89506856,0.00029029,2]
[313915897,1707820241333,-500.0,0.00029029,2]
[313915898,1707820241343,-150.0,0.00029029,2]
[313915899,1707820241352,-500.0,0.00029029,2]
[313915900,1707820241362,-262.41245731,0.00029029,2]
[313915901,1707820241371,-270.4539905,0.00029029,2]
[313915902,1707820241381,-500.0,0.00029029,2]
[313915903,1707820241394,-226.31109976,0.00029029,2]
[313915904,1707820241403,-500.0,0.00029029,2]
[313915905,1707820241412,-500.0,0.00029029,2]
[313915906,1707820241421,-500.0,0.00029029,2]
[313915907,1707820241430,-500.0,0.00029029,2]
[313915908,1707820241439,-500.0,0.00029029,2]
[313915909,1707820241448,-520.36805467,0.00029029,2]
[313915910,1707820241457,-515.41640257,0.00029029,2]
[313915911,1707820241466,-500.0,0.00029029,2]
[313915912,1707820241476,-500.0,0.00029029,2]
[313915913,1707820241485,-400.2486481,0.00029029,2]
[313915914,1707820241494,-500.0,0.00029029,2]
[313915915,1707820241505,-596.13254473,0.00029029,2]
[313915916,1707820241514,-500.0,0.00029029,2]
[313915917,1707820241523,-500.0,0.00029029,2]
[313915918,1707820241532,-524.56973147,0.00029029,2]
[313915919,1707820241542,-500.0,0.00029029,2]
[313915920,1707820241551,-500.0,0.00029029,2]
[313915921,1707820241561,-500.0,0.00029029,2]
[313915922,1707820241570,-564.46665161,0.00029029,2]
[313915923,1707820241579,-500.0,0.00029029,2]
[313915924,1707820241589,-588.83707308,0.00029029,2]
[313915925,1707820241598,-500.0,0.00029029,2]
[313915926,1707820241607,-500.0,0.00029029,2]
[313915927,1707820241616,-500.0,0.00029029,2]
[313915928,1707820241625,-500.0,0.00029029,2]
[313915929,1707820241635,-500.0,0.00029029,2]
[313915930,1707820241644,-500.0,0.00029029,2]
[313915931,1707820241653,-500.0,0.00029029,2]
[313915932,1707820241662,-500.0,0.00029029,2]
[313915933,1707820241671,-500.0,0.00029029,2]
[313915934,1707820241681,-500.0,0.00029029,2]
[313915935,1707820241690,-500.0,0.00029029,2]
[313915936,1707820241700,-500.0,0.00029029,2]
[313915937,1707820241709,-500.0,0.00029029,2]
[313915938,1707820241718,-500.0,0.00029029,2]
[313915939,1707820241727,-500.0,0.00029029,2]
[313915940,1707820241736,-509.59200334,0.00029029,2]
[313915941,1707820241745,-500.0,0.00029029,2]
[313915942,1707820241754,-500.0,0.00029029,2]
[313915943,1707820241763,-500.0,0.00029029,2]
[313915944,1707820241771,-500.0,0.00029029,2]
[313915945,1707820241781,-500.0,0.00029029,2]
[313915946,1707820241790,-500.0,0.00029029,2]
[313915947,1707820241799,-500.0,0.00029029,2]
[313915948,1707820241808,-500.0,0.00029029,2]
[313915949,1707820241817,-500.0,0.00029029,2]
[313915950,1707820241826,-500.0,0.00029029,2]
[313915951,1707820241835,-261.26601581,0.00029029,2]
[313915952,1707820241844,-486.47883203,0.00029029,2]
[313915953,1707820241853,-500.0,0.00029029,2]
[313915954,1707820241862,-500.0,0.00029029,2]
[313915955,1707820241871,-500.0,0.00029029,2]
[313915956,1707820241880,-500.0,0.00029029,2]
[313915957,1707820241889,-500.0,0.00029029,2]
[313915958,1707820241898,-500.0,0.00029029,2]
[313915959,1707820241907,-500.0,0.00029029,2]
[313915960,1707820241917,-500.0,0.00029029,2]
[313915961,1707820241926,-500.0,0.00029029,2]
[313915962,1707820241934,-500.0,0.00029029,2]
[313915963,1707820241943,-500.0,0.00029029,2]
[313915964,1707820241952,-500.0,0.00029029,2]
[313915965,1707820241961,-500.0,0.00029029,2]
[313915966,1707820241970,-1000.0,0.00029029,7]
[313915967,1707820241979,-500.0,0.00029029,2]
[313915968,1707820241988,-500.0,0.00029029,2]
[313915969,1707820241997,-500.0,0.00029029,2]
[313915970,1707820242007,-500.0,0.00029029,2]
[313915971,1707820242016,-500.0,0.00029029,2]
[313915972,1707820242025,-500.0,0.00029029,2]
[313915973,1707820242034,-500.0,0.00029029,2]
[313915974,1707820242043,-500.0,0.00029029,2]
[313915975,1707820242052,-500.0,0.00029029,2]
[313915976,1707820242061,-500.0,0.00029029,2]
[313915977,1707820242071,-500.0,0.00029029,2]
[313915978,1707820242080,-500.0,0.00029029,2]
[313915979,1707820242089,-500.0,0.00029029,2]
[313915980,1707820242098,-500.0,0.00029029,2]
[313915981,1707820242108,-500.0,0.00029029,2]
[313915982,1707820242117,-500.0,0.00029029,2]
[313915983,1707820242126,-500.0,0.00029029,2]
[313915984,1707820242135,-500.0,0.00029029,2]
[313915985,1707820242144,-500.0,0.00029029,2]
[313915986,1707820242153,-500.0,0.00029029,2]
[313915987,1707820242162,-500.0,0.00029029,2]
[313915988,1707820242171,-434.27188239,0.00029029,2]
[313915989,1707820242181,-500.0,0.00029029,2]
[313915990,1707820242190,-500.0,0.00029029,2]
[313915991,1707820242200,-500.0,0.00029029,2]
[313915992,1707820242209,-500.0,0.00029029,2]
[313915993,1707820242218,-235.39935837,0.00029029,2]
[313915994,1707820242227,-500.0,0.00029029,2]
[313915995,1707820242236,-1337.28,0.00029029,2]
[313915996,1707820242245,-500.0,0.00029029,2]
[313915997,1707820242254,-302.03527271,0.00029029,2]
[313915998,1707820242264,-284.58777128,0.00029029,2]
[313915999,1707820242273,-571.62106035,0.00029029,2]
[313916000,1707820242282,-538.94249897,0.00029029,2]
[313916001,1707820242292,-500.0,0.00029029,2]
[313916002,1707820242302,-1116.28,0.00029029,2]
[313916003,1707820242314,-500.0,0.00029029,2]
[313916004,1707820242324,-500.0,0.00029029,2]
[313916005,1707820242333,-500.0,0.00029029,2]
[313916006,1707820242343,-500.0,0.00029029,2]
[313916007,1707820242352,-505.75525425,0.00029029,2]
[313916008,1707820242361,-500.0,0.00029029,2]
[313916009,1707820242370,-500.0,0.00029029,2]
[313916010,1707820242380,-500.0,0.00029029,2]
[313916011,1707820242390,-500.0,0.00029029,2]
[313916012,1707820242401,-500.0,0.00029029,2]
[313916013,1707820242412,-500.0,0.00029029,2]
[313916014,1707820242422,-500.0,0.00029029,2]
[313916015,1707820242431,-500.0,0.00029029,2]
[313916016,1707820242440,-500.0,0.00029029,2]
[313916017,1707820242449,-500.0,0.00029029,2]
[313916018,1707820242458,-500.0,0.00029029,2]
[313916019,1707820242467,-500.0,0.00029029,2]
[313916020,1707820242476,-500.0,0.00029029,2]
[313916021,1707820242486,-777.48,0.00029029,2]
[313916022,1707820242495,-500.0,0.00029029,2]
[313916023,1707820242504,-500.0,0.00029029,2]
[313916024,1707820242513,-532.22106102,0.00029029,2]
[313916025,1707820242523,-500.0,0.00029029,2]
[313916026,1707820242532,-500.0,0.00029029,2]
[313916028,1707820242541,-516.7573532,0.00029029,2]
[313916030,1707820242551,-500.0,0.00029029,2]
[313916031,1707820242559,-511.47203932,0.00029029,2]
[313916032,1707820242568,-500.0,0.00029029,2]
[313916033,1707820242577,-500.0,0.00029029,2]
[313916034,1707820242587,-500.0,0.00029029,2]
[313916035,1707820242595,-500.0,0.00029029,2]
[313916036,1707820242609,-500.0,0.00029029,2]
[313916037,1707820242618,-500.0,0.00029029,2]
[313916038,1707820242628,-500.0,0.00029029,2]
[313916039,1707820242637,-1700.82,0.00029029,2]
[313916040,1707820242646,-400.66128136,0.00029029,2]
[313916041,1707820242658,-500.0,0.00029029,2]
[313916042,1707820242667,-500.0,0.00029029,2]
[313916043,1707820242676,-514.82813539,0.00029029,2]
[313916044,1707820242685,-500.0,0.00029029,2]
[313916045,1707820242694,-500.0,0.00029029,2]
[313916046,1707820242703,-500.0,0.00029029,2]
[313916047,1707820242713,-500.0,0.00029029,2]
[313916048,1707820242723,-521.46840385,0.00029029,2]
[313916049,1707820242732,-500.0,0.00029029,2]
[313916050,1707820242743,-500.0,0.00029029,2]
[313916051,1707820242752,-548.6292419,0.00029029,2]
[313916052,1707820242761,-500.0,0.00029029,2]
[313916053,1707820242771,-529.65992867,0.00029029,2]
[313916054,1707820242780,-607.15186965,0.00029029,2]
[313916055,1707820242790,-500.0,0.00029029,2]
[313916056,1707820242799,-1905.91,0.00029029,2]
[313916057,1707820242809,-500.0,0.00029029,2]
[313916059,1707820242818,-500.0,0.00029029,2]
[313916061,1707820242827,-500.0,0.00029029,2]
[313916063,1707820242836,-500.0,0.00029029,2]
[313916065,1707820242845,-500.0,0.00029029,2]
[313916067,1707820242854,-500.0,0.00029029,2]
[313916069,1707820242863,-500.0,0.00029029,2]
[313916071,1707820242873,-500.0,0.00029029,2]
[313916073,1707820242882,-500.0,0.00029029,2]
[313916075,1707820242891,-500.0,0.00029029,2]
[313916077,1707820242900,-500.0,0.00029029,2]
[313916079,1707820242909,-500.0,0.00029029,2]
[313916080,1707820242918,-500.0,0.00029029,2]
[313916081,1707820242927,-500.0,0.00029029,2]
[313916082,1707820242935,-542.06028541,0.00029029,2]
[313916083,1707820242944,-1183.21,0.00029029,2]
[313916084,1707820242953,-500.0,0.00029029,2]
[313916085,1707820242962,-500.0,0.00029029,2]
[313916086,1707820242971,-500.0,0.00029029,2]
[313916087,1707820242981,-535.71107906,0.00029029,2]
[313916088,1707820242991,-500.0,0.00029029,2]
[313916089,1707820243001,-500.0,0.00029029,2]
[313916090,1707820243010,-500.0,0.00029029,2]
[313916091,1707820243019,-612.36,0.00029029,2]
[313916092,1707820243028,-500.0,0.00029029,2]
[313916093,1707820243037,-500.0,0.00029029,2]
[313916094,1707820243047,-500.0,0.00029029,2]
[313916095,1707820243056,-500.0,0.00029029,2]
[313916096,1707820243065,-500.0,0.00029029,2]
[313916097,1707820243074,-500.0,0.00029029,2]
[313916098,1707820243084,-542.95757459,0.00029029,2]
[313916099,1707820243094,-500.0,0.00029029,2]
[313916100,1707820243104,-500.0,0.00029029,2]
[313916101,1707820243114,-593.87663365,0.00029029,2]
[313916102,1707820243123,-514.9,0.00029029,2]
[313916103,1707820243133,-500.0,0.00029029,2]
[313916104,1707820243142,-500.0,0.00029029,2]
[313916105,1707820243152,-530.38277223,0.00029029,2]
[313916106,1707820243162,-549.64,0.00029029,2]
[313916107,1707820243171,-500.0,0.00029029,2]
[313916108,1707820243180,-500.0,0.00029029,2]
[313916109,1707820243190,-500.0,0.00029029,2]
[313916110,1707820243199,-322.38230736,0.00029029,2]
[313916111,1707820243208,-500.0,0.00029029,2]
[313916112,1707820243218,-200.67217129,0.00029029,2]
[313916113,1707820243227,-500.0,0.00029029,2]
[313916114,1707820243239,-500.0,0.00029029,2]
[313916115,1707820243248,-2632.93,0.00029029,2]
[313916116,1707820243258,-500.0,0.00029029,2]
[313916117,1707820243267,-500.0,0.00029029,2]
[313916118,1707820243279,-500.0,0.00029029,2]
[313916119,1707820243288,-500.0,0.00029029,2]
[313916120,1707820243297,-500.0,0.00029029,2]
[313916121,1707820243310,-500.0,0.00029029,2]
[313916122,1707820243323,-500.0,0.00029029,2]
[313916123,1707820243332,-500.0,0.00029029,2]
[313916124,1707820243342,-1058.32,0.00029029,2]
[313916125,1707820243354,-500.0,0.00029029,2]
[313916126,1707820243364,-500.0,0.00029029,2]
[313916127,1707820243373,-500.0,0.00029029,2]
[313916128,1707820243383,-500.0,0.00029029,2]
[313916129,1707820243394,-500.0,0.00029029,2]
[313916130,1707820243404,-500.0,0.00029029,2]
[313916131,1707820243414,-500.0,0.00029029,2]
[313916132,1707820243423,-500.0,0.00029029,2]
[313916133,1707820243432,-500.0,0.00029029,2]
[313916134,1707820243441,-500.0,0.00029029,2]
[313916135,1707820243450,-500.0,0.00029029,2]
[313916136,1707820243459,-500.0,0.00029029,2]
[313916137,1707820243468,-500.0,0.00029029,2]
[313916138,1707820243478,-500.0,0.00029029,2]
[313916139,1707820243488,-500.0,0.00029029,2]
[313916140,1707820243498,-500.0,0.00029029,2]
[313916141,1707820243507,-500.0,0.00029029,2]
[313916142,1707820243516,-500.0,0.00029029,2]
[313916143,1707820243525,-500.0,0.00029029,2]
[313916144,1707820243535,-500.0,0.00029029,2]
[313916145,1707820243544,-500.0,0.00029029,2]
[313916146,1707820243553,-586.88,0.00029029,2]
[313916147,1707820243563,-500.0,0.00029029,2]
[313916148,1707820243572,-500.0,0.00029029,2]
[313916149,1707820243581,-500.0,0.00029029,2]
[313916150,1707820243590,-1003.25,0.00029029,2]
[313916151,1707820243599,-500.0,0.00029029,2]
[313916152,1707820243608,-500.0,0.00029029,2]
[313916153,1707820243618,-500.0,0.00029029,2]
[313916154,1707820243628,-500.0,0.00029029,2]
[313916155,1707820243637,-552.0,0.00029029,2]
[313916156,1707820243647,-500.0,0.00029029,2]
[313916157,1707820243656,-500.0,0.00029029,2]
[313916158,1707820243666,-500.0,0.00029029,2]
[313916159,1707820243675,-1500.0,0.00029029,5]
[313916160,1707820243685,-1077.19191958,0.0002903,2]
[313916161,1707820243694,-212.28989124,0.0002903,15]
[313916163,1707820243906,-1883.62530784,0.0002903,2]
[313916164,1707820243916,-480.78358386,0.0002903,2]
[313916165,1707820243926,-161.55566139,0.0002903,2]
[313916166,1707820243935,-245000.0,0.0002903,2]
[313916167,1707820243945,-100000.0,0.0002903,2]
[313916168,1707820243954,-150.0,0.00029032,2]
[313916169,1707820243963,-150.0,0.00029033,2]
[313916170,1707820243972,-150.0,0.00029036,2]
[313916171,1707820243981,-300.0,0.00029037,2]
[313916172,1707820243992,-150.0,0.00029039,2]
[313916173,1707820244001,-150.0,0.0002904,2]
[313916174,1707820244010,-48126.70705621,0.00029041,3]
[313916175,1707820244297,-311.21120683,0.00029041,3]
[313916176,1707820244312,-679.21665167,0.00029041,3]
[313916177,1707820244333,-1121.92235066,0.00029041,3]
[313916178,1707820244345,-8266.23358946,0.00029041,3]
[313916179,1707820244366,-2500.82119386,0.00029041,3]
[313916180,1707820244382,-1059.99817038,0.00029041,3]
[313916181,1707820244395,-28838.36714117,0.00029041,3]
[313916186,1707820244711,-500.0,0.00028767,2]
[313916187,1707820244721,-429.41056187,0.00028767,2]
[313916188,1707820244736,-70.58943813,0.00028767,2]
[313916189,1707820244746,-502.33008968,0.00028767,2]
[313916190,1707820244756,-250227.08047214,0.00029041,3]
[313916191,1707820245172,-367.76448205,0.00028766,2]
[313916192,1707820245182,-529.27288215,0.00028767,2]
[313916193,1707820245191,-417.44372197,0.00028767,2]
[313916194,1707820245201,-500.0,0.00028767,2]
[313916195,1707820245210,-499.99,0.00028867,2]
[313916196,1707820245220,-175.10873064,0.00028941,2]
[313916197,1707820245230,-500.0,0.00029029,2]
[313916198,1707820245240,-185.11328238,0.00029029,2]
[313916199,1707820245253,-314.88671762,0.00029029,2]
[313916200,1707820245263,-431.39983439,0.00029041,3]
[313916201,1707820245275,-2569.13006904,0.00029041,3]
[313916202,1707820245287,-515.09888475,0.00029041,3]
[313916203,1707820245361,-161.32387663,0.00028766,2]
[313916204,1707820245371,-622.52962415,0.00029041,3]
[313916205,1707820245384,-2471.77952897,0.00029041,3]
[313916206,1707820245397,-10489.1699999,0.00029041,3]
[313916207,1707820245415,-500.0,0.00029029,2]
[313916208,1707820245425,-2552.58213775,0.00029041,3]
[313916209,1707820245674,-493.54255077,0.00029029,2]
[313916210,1707820245683,-14319.17290923,0.00029041,3]
[313916211,1707820245696,-1271.88166099,0.00029041,3]
[313916212,1707820245731,-3758.25,0.00029041,3]
[313916213,1707820245744,-2673.3,0.00029041,3]
[313916223,1707820246379,-48189.83563727,0.00029041,3]
[313916224,1707820246716,-58337.15180646,0.00029041,3]
[313916225,1707820246733,-144783.88604375,0.00029041,3]
[313916226,1707820246828,-3383.96865043,0.00029041,3]
[313916235,1707820732928,3410.0,0.00025,10]
[313916256,1707821431860,-513.61732375,0.00025,2]
[313916257,1707821431869,-200.0,0.00025,2]
[313916258,1707821431879,-142.48343661,0.00025,3]
[313916259,1707821431955,-207.51656339,0.00025,3]
[313916260,1707821431964,-671.86013907,0.000252,10]
[313916261,1707821431976,-341.78195328,0.000252,10]
[313916262,1707821431988,-832.48880502,0.000252,10]
[313916263,1707821432000,-299.99,0.000252,10]
[313916264,1707821432019,-2853.87910263,0.000252,10]
[313916265,1707821432029,-881.06,0.00025681,2]
[313916266,1707821432039,-18959.10598561,0.00026013,2]
[313916267,1707821432048,-158.33458608,0.0002626,2]
[313916268,1707821432057,-205.0,0.0002636,2]
[313916269,1707821432067,-259.84,0.00026958,2]
[313916270,1707821432076,-150.0,0.00026991,2]
[313916271,1707821432086,-400.0,0.00027,3]
[313916272,1707821432095,-250.0,0.00027043,2]
[313916273,1707821432104,-2000.0,0.00027054,2]
[313916274,1707821432114,-8842.58232327,0.00027131,2]
[313916275,1707821432125,-1018.7411592,0.00027131,2]
[313916276,1707821432137,-731.0068408,0.00027131,2]
[313916277,1707821432152,-4835.69710601,0.00027131,2]
[313916289,1707821437843,-8471.97257072,0.00027131,2]
[313916290,1707821437853,-158.33458605,0.00027183,2]
[313916291,1707821437862,-166.63704861,0.00027267,6]
[313916292,1707821437871,-338.39,0.00027267,2]
[313916293,1707821437880,-955.27,0.00027276,2]
[313916294,1707821437889,-160.66207042,0.00027305,3]
[313916295,1707821437899,-250.0,0.0002732,2]
[313916296,1707821437909,-156.55,0.00027336,2]
[313916297,1707821437918,-2793.0,0.00027622,2]
[313916298,1707821437927,-1000.0,0.00027662,2]
[313916299,1707821437936,-330.16,0.00027772,2]
[313916300,1707821437946,-499.99,0.00027772,2]
[313916301,1707821437955,-530.47592082,0.00027918,2]
[313916302,1707821437964,-881.06,0.00027944,2]
[313916303,1707821437974,-16220.43160698,0.00027987,2]
[313916304,1707821437992,-316.94367216,0.00027987,2]
[313916305,1707821438003,-47921.01556575,0.00027987,2]
[313916306,1707821438015,-73172.52646739,0.00027987,2]
[313916307,1707821438064,-466.16410362,0.00027987,2]
[313916308,1707821438075,-638.24848553,0.00027987,2]
[313916309,1707821438087,-1085.41820824,0.00027987,2]
[313916310,1707821438170,-783.45476951,0.00027987,2]
[313916311,1707821438226,-2614.91571,0.00027987,2]
[313916312,1707821438237,-4742.84156189,0.00027987,2]
[313916334,1707821440462,-29730.11814893,0.00027987,2]
[313916335,1707821440472,-12387.24289444,0.00028086,2]
[313916336,1707821440482,-7732.63895663,0.00028088,2]
[313916337,1707821440496,-36176.80643856,0.00028088,2]
[313916338,1707821440506,-158.33458605,0.00028107,2]
[313916339,1707821440515,-205.0,0.0002813,5]
[313916340,1707821440525,-704.41082806,0.00028665,2]
[313916341,1707821440534,-247.3175067,0.00028665,2]
[313916342,1707821440543,-1262.54567766,0.00028665,2]
[313916343,1707821440553,-155.61257048,0.00028665,2]
[313916344,1707821440563,-155.0,0.00028666,2]
[313916345,1707821440573,-169.88533625,0.00028667,4]
[313916346,1707821440582,-5000.0,0.00028667,2]
[313916347,1707821440601,-200.0,0.00028747,2]
[313916348,1707821440613,-200.0,0.00028747,3]
[313916349,1707821440623,-10053.08720518,0.00028755,2]
[313916350,1707821440636,-3842.0,0.00028755,2]
[313916351,1707821440648,-1264.43496221,0.00028755,2]
[313916352,1707821441211,-488.69513939,0.00028755,2]
[313916353,1707821441223,-17150.0948355,0.00028755,2]
[313916354,1707821441268,-133824.28387663,0.00028755,2]
[313916355,1707821441378,-791.91802622,0.00028755,2]
[313916356,1707821442899,-77585.48595487,0.00028755,2]
[313916357,1707821442909,-503.89506856,0.00028767,2]
[313916358,1707821442920,-500.0,0.00028767,2]
[313916359,1707821442929,-262.41245731,0.00028767,2]
[313916360,1707821442938,-500.0,0.00028767,2]
[313916361,1707821442948,-509.21958738,0.00028767,2]
[313916362,1707821442957,-500.0,0.00028767,2]
[313916363,1707821442966,-500.0,0.00028767,2]
[313916364,1707821442976,-500.0,0.00028767,2]
[313916365,1707821442985,-500.0,0.00028767,2]
[313916366,1707821442995,-261.26601581,0.00028767,2]
[313916367,1707821443005,-500.0,0.00028767,2]
[313916368,1707821443015,-500.0,0.00028767,2]
[313916369,1707821443025,-500.0,0.00028767,2]
[313916370,1707821443037,-500.0,0.00028767,2]
[313916371,1707821443047,-500.0,0.00028767,2]
[313916372,1707821443057,-500.43227911,0.00028767,2]
[313916373,1707821443067,-500.0,0.00028767,2]
[313916374,1707821443077,-1500.0,0.00028767,5]
[313916375,1707821443087,-500.0,0.00028767,2]
[313916376,1707821443096,-500.0,0.00028767,2]
[313916377,1707821443106,-500.0,0.00028767,2]
[313916378,1707821443115,-500.0,0.00028767,2]
[313916379,1707821443125,-453.10928411,0.00028767,2]
[313916380,1707821443134,-500.0,0.00028767,2]
[313916381,1707821443144,-500.0,0.00028767,2]
[313916382,1707821443154,-1000.0,0.00028767,7]
[313916383,1707821443163,-500.0,0.00028767,2]
[313916384,1707821443173,-500.0,0.00028767,2]
[313916385,1707821443183,-500.0,0.00028767,2]
[313916386,1707821443192,-500.0,0.00028767,2]
[313916387,1707821443202,-500.0,0.00028767,2]
[313916389,1707821443462,-500.0,0.00028767,2]
[313916390,1707821443472,-500.0,0.00028767,2]
[313916391,1707821443482,-500.0,0.00028767,2]
[313916392,1707821443491,-500.0,0.00028767,2]
[313916393,1707821443500,-500.0,0.00028767,2]
[313916394,1707821443509,-500.0,0.00028767,2]
[313916395,1707821443518,-500.0,0.00028767,2]
[313916396,1707821443528,-500.0,0.00028767,2]
[313916397,1707821443538,-281.88820774,0.00028767,2]
[313916398,1707821443547,-500.0,0.00028767,2]
[313916399,1707821443556,-500.0,0.00028767,2]
[313916400,1707821443566,-500.0,0.00028767,2]
[313916401,1707821443575,-500.0,0.00028767,7]
[313916402,1707821443585,-505.75525425,0.00028767,2]
[313916403,1707821443595,-500.0,0.00028767,2]
[313916404,1707821443604,-500.0,0.00028767,2]
[313916405,1707821443614,-500.0,0.00028767,2]
[313916406,1707821443623,-556.07183139,0.00028767,2]
[313916407,1707821443632,-570.29484709,0.00028767,2]
[313916408,1707821443641,-607.40788422,0.00028767,2]
[313916409,1707821443651,-500.0,0.00028767,2]
[313916410,1707821443664,-500.0,0.00028767,2]
[313916411,1707821443673,-598.57207626,0.00028767,2]
[313916412,1707821443682,-500.0,0.00028767,2]
[313916413,1707821443692,-500.0,0.00028767,2]
[313916414,1707821443701,-500.0,0.00028767,2]
[313916415,1707821443712,-500.0,0.00028767,2]
[313916416,1707821443721,-500.0,0.00028767,2]
[313916417,1707821443731,-500.0,0.00028767,2]
[313916418,1707821443743,-500.0,0.00028767,2]
[313916419,1707821443753,-500.0,0.00028767,2]
[313916420,1707821443762,-500.0,0.00028767,2]
[313916421,1707821443772,-500.0,0.00028767,2]
[313916422,1707821443783,-302.03527271,0.00028767,2]
[313916423,1707821443792,-571.62106035,0.00028767,2]
[313916424,1707821443801,-500.0,0.00028767,2]
[313916425,1707821443811,-500.0,0.00028767,2]
[313916426,1707821443820,-500.0,0.00028767,2]
[313916427,1707821443829,-500.0,0.00028767,2]
[313916428,1707821443839,-500.0,0.00028767,2]
[313916429,1707821443848,-500.0,0.00028767,2]
[313916430,1707821443857,-516.7573532,0.00028767,2]
[313916431,1707821443866,-500.0,0.00028767,2]
[313916432,1707821443876,-511.47203932,0.00028767,2]
[313916433,1707821443885,-500.0,0.00028767,2]
[313916434,1707821443894,-500.0,0.00028767,2]
[313916435,1707821443904,-551.78418016,0.00028767,2]
[313916436,1707821443914,-500.0,0.00028767,2]
[313916437,1707821443923,-500.0,0.00028767,2]
[313916438,1707821443932,-500.0,0.00028767,2]
[313916439,1707821443941,-500.0,0.00028767,2]
[313916440,1707821443950,-537.34017288,0.00028767,2]
[313916441,1707821443960,-500.0,0.00028767,2]
[313916442,1707821443969,-500.0,0.00028767,2]
[313916443,1707821443979,-500.0,0.00028767,2]
[313916444,1707821443988,-500.0,0.00028767,2]
[313916445,1707821443997,-500.0,0.00028767,2]
[313916446,1707821444006,-500.0,0.00028767,2]
[313916447,1707821444015,-500.0,0.00028767,2]
[313916448,1707821444025,-500.0,0.00028767,2]
[313916449,1707821444034,-530.87632139,0.00028767,2]
[313916450,1707821444044,-500.0,0.00028767,2]
[313916451,1707821444053,-500.0,0.00028767,2]
[313916452,1707821444063,-500.0,0.00028767,2]
[313916453,1707821444072,-500.0,0.00028767,2]
[313916454,1707821444082,-500.0,0.00028767,2]